bitfinex/quotes_BTCUSD_20250817
["timestamp","ask_amount","ask_price","bid_price","bid_amount"]
[1755472289346,1.28539676,117980.0,117970.0,0.00144868]
[1755472289866,1.26357918,117980.0,117970.0,0.00144868]
[1755472290068,1.28539683,117980.0,117970.0,0.00144868]
[1755472295569,1.29333393,117980.0,117970.0,0.00144868]
[1755472298400,1.27746655,117980.0,117970.0,0.00144868]
[1755472298603,1.2933567,117980.0,117970.0,0.00144868]
[1755472299814,1.37817794,117980.0,117970.0,0.00144868]
[1755472300014,1.2933567,117980.0,117970.0,0.00144868]
[1755472302112,1.31624149,117980.0,117970.0,0.00144868]
[1755472304416,0.88219619,117980.0,117970.0,0.00144868]
[1755472304616,1.31624149,117980.0,117970.0,0.00144868]
[1755472304805,0.88219619,117980.0,117970.0,0.00144868]
[1755472305016,1.31624149,117980.0,117970.0,0.00144868]
[1755472306017,0.88219619,117980.0,117970.0,0.00144868]
[1755472306219,1.31624149,117980.0,117970.0,0.00144868]
[1755472307515,1.30234532,117980.0,117970.0,0.00144868]
[1755472307731,1.31627965,117980.0,117970.0,0.00144868]
[1755472307942,1.29441482,117980.0,117970.0,0.00144868]
[1755472308190,1.31627965,117980.0,117970.0,0.00144868]
[1755472310658,1.31627966,117980.0,117970.0,0.00144868]
[1755472311922,1.31627973,117980.0,117970.0,0.00144868]
[1755472316732,1.30236567,117980.0,117970.0,0.00144868]
[1755472316948,1.31628267,117980.0,117970.0,0.00144868]
[1755472319042,0.88223737,117980.0,117970.0,0.00144868]
[1755472319268,1.31628267,117980.0,117970.0,0.00144868]
[1755472319947,1.31628305,117980.0,117970.0,0.00144868]
[1755472320579,0.85719775,117980.0,117970.0,0.00278868]
[1755472320820,1.0972104,117980.0,117970.0,0.00278868]
[1755472320994,1.0993204,117980.0,117970.0,0.00278868]
[1755472321153,1.31634305,117980.0,117970.0,0.00144868]
[1755472322912,1.36727305,117980.0,117970.0,0.00144868]
[1755472323085,1.31634305,117980.0,117970.0,0.00144868]
[1755472324219,0.88229775,117980.0,117970.0,0.00144868]
[1755472324448,1.31634305,117980.0,117970.0,0.00144868]
[1755472325108,1.31634377,117980.0,117970.0,0.00144868]
[1755472325231,1.32230879,117980.0,117970.0,0.00144868]
[1755472325459,1.32231065,117980.0,117970.0,0.00144868]
[1755472326198,1.32231057,117980.0,117970.0,0.00144868]
[1755472328428,1.35203428,117980.0,117970.0,0.00144868]
[1755472328655,0.98602894,117970.0,117960.0,0.0004]
[1755472328902,1.25355785,117970.0,117960.0,0.0004487]
[1755472329547,0.82290955,117970.0,117960.0,0.0004487]
[1755472329767,1.0399322,117970.0,117960.0,0.0004487]
[1755472329977,1.0399322,117970.0,117960.0,0.0024487]
[1755472330416,0.82290955,117970.0,117960.0,0.0024487]
[1755472330623,1.0399322,117970.0,117960.0,0.0024487]
[1755472330829,1.0399322,117970.0,117960.0,0.0034487]
[1755472331601,0.82290955,117970.0,117960.0,0.0034487]
[1755472331814,1.0399322,117970.0,117960.0,0.0034487]
[1755472334011,1.04836768,117970.0,117960.0,0.0034487]
[1755472334430,1.01854554,117970.0,117960.0,0.0034487]
[1755472334630,1.04835104,117970.0,117960.0,0.0034487]
[1755472335133,1.04834949,117970.0,117960.0,0.0034487]
[1755472335284,1.04834947,117970.0,117960.0,0.0034487]
[1755472339075,1.04834731,117970.0,117960.0,0.0034487]
[1755472340070,0.83132466,117970.0,117960.0,0.0034487]
[1755472340273,1.04834731,117970.0,117960.0,0.0034487]
[1755472340673,1.04834575,117970.0,117960.0,0.0034487]
[1755472343820,1.04833963,117970.0,117960.0,0.0034487]
[1755472344244,1.04833962,117970.0,117960.0,0.0034487]
[1755472344665,1.04833947,117970.0,117960.0,0.0034487]
[1755472347017,1.04833992,117970.0,117960.0,0.0034487]
[1755472352405,1.07122471,117970.0,117960.0,0.0034487]
[1755472353034,1.06327962,117970.0,117960.0,0.0034487]
[1755472353303,1.071229,117970.0,117960.0,0.0034487]
[1755472353720,0.85420671,117970.0,117960.0,0.0034487]
[1755472353979,0.83132192,117970.0,117960.0,0.0034487]
[1755472354186,1.09834457,117970.0,117960.0,0.0034487]
[1755472355049,1.09834144,117970.0,117960.0,0.0034487]
[1755472355278,0.98902701,117970.0,117960.0,0.0034487]
[1755472355500,0.90420577,117970.0,117960.0,0.0034487]
[1755472355712,1.12122842,117970.0,117960.0,0.0034487]
[1755472356344,1.1212324,117970.0,117960.0,0.0034487]
[1755472358413,1.33825505,117970.0,117960.0,0.0034487]
[1755472360339,0.90420975,117970.0,117960.0,0.0034487]
[1755472360586,1.1212324,117970.0,117960.0,0.0034487]
[1755472362322,1.11329901,117970.0,117960.0,0.0034487]
[1755472362535,1.33827477,117970.0,117960.0,0.0034487]
[1755472362959,1.33827449,117970.0,117960.0,0.0034487]
[1755472363167,1.33827467,117970.0,117960.0,0.0034487]
[1755472369879,1.32983919,117970.0,117960.0,0.0034487]
[1755472371489,1.30001656,117970.0,117960.0,0.0034487]
[1755472371692,1.1128095,117970.0,117960.0,0.0034487]
[1755472378490,0.38657164,117960.0,117950.0,0.0004]
[1755472378707,0.62565046,117960.0,117950.0,0.00178871]
[1755472378923,0.64396005,117960.0,117950.0,0.00178871]
[1755472379375,0.66944305,117960.0,117950.0,0.00178871]
[1755472379609,0.64396005,117960.0,117950.0,0.00262871]
[1755472380063,0.64396005,117960.0,117950.0,0.00178871]
[1755472380280,0.2945374,117960.0,117950.0,0.22181136]
[1755472380394,0.40858781,117960.0,117950.0,0.00478871]
[1755472380616,0.38672304,117960.0,117950.0,0.00678871]
[1755472380883,0.40858947,117960.0,117950.0,0.00678871]
[1755472382776,0.62561054,117960.0,117950.0,0.00678871]
[1755472382970,0.64392013,117960.0,117950.0,0.00678871]
[1755472385789,0.62801798,117960.0,117950.0,0.00678871]
[1755472386023,0.64391853,117960.0,117950.0,0.00678871]
[1755472387186,0.64710853,117960.0,117950.0,0.00678871]
[1755472387831,0.64908853,117960.0,117950.0,0.00678871]
[1755472388914,0.64312583,117960.0,117950.0,0.00678871]
[1755472389133,0.64908719,117960.0,117950.0,0.00678871]
[1755472389338,0.64908719,117960.0,117950.0,0.00478871]
[1755472389550,0.64908698,117960.0,117950.0,0.00478871]
[1755472389754,0.43206427,117960.0,117950.0,0.00478871]
[1755472389958,0.63077733,117960.0,117950.0,0.00178871]
[1755472390112,0.64908692,117960.0,117950.0,0.00178871]
[1755472390297,0.64908692,117960.0,117950.0,0.00378871]
[1755472390522,0.64908692,117960.0,117950.0,0.00278871]
[1755472391074,0.64908692,117960.0,117950.0,0.00378871]
[1755472391303,0.64908692,117960.0,117950.0,0.00278871]
[1755472392750,0.64908692,117960.0,117950.0,0.00378871]
[1755472393185,0.64908692,117960.0,117950.0,0.00244871]
[1755472398248,0.64908712,117960.0,117950.0,0.00244871]
[1755472398714,0.86610995,117960.0,117950.0,0.00244871]
[1755472399145,0.6490873,117960.0,117950.0,0.00244871]
[1755472399578,0.6490873,117960.0,117950.0,0.00144871]
[1755472399801,0.6490873,117960.0,117950.0,0.00044871]
[1755472399965,0.86610995,117960.0,117950.0,0.00044871]
[1755472403532,0.43206465,117960.0,117950.0,0.00044871]
[1755472403739,0.63077771,117960.0,117950.0,0.00044871]
[1755472403944,0.6490873,117960.0,117950.0,0.00044871]
[1755472407069,0.64312482,117960.0,117950.0,0.00044871]
[1755472407281,0.64909534,117960.0,117950.0,0.00044871]
[1755472407822,0.86611799,117960.0,117950.0,0.00044871]
[1755472408018,0.91652011,117960.0,117950.0,0.00044871]
[1755472408222,1.28200411,117960.0,117950.0,0.00044871]
[1755472409438,1.28300411,117960.0,117950.0,0.00044871]
[1755472410304,1.28400411,117960.0,117950.0,0.00044871]
[1755472414462,0.84995881,117960.0,117950.0,0.00044871]
[1755472414681,1.28400411,117960.0,117950.0,0.00044871]
[1755472416439,1.2700866,117960.0,117950.0,0.00044871]
[1755472416648,1.28398304,117960.0,117950.0,0.00044871]
[1755472417653,0.50956337,117950.0,117940.0,0.0004]
[1755472417911,0.16957775,117940.0,117930.0,0.0004]
[1755472418133,0.90620097,117940.0,117930.0,0.00044873]
[1755472418351,0.9418162,117940.0,117930.0,0.00044873]
[1755472418567,0.9189258,117940.0,117930.0,0.00044873]
[1755472419606,0.91889411,117940.0,117930.0,0.00044873]
[1755472419816,0.96889411,117940.0,117930.0,0.00044873]
[1755472420197,0.96889411,117940.0,117930.0,0.00144873]
[1755472420609,0.96889411,117940.0,117930.0,0.00044873]
[1755472420969,0.96889411,117940.0,117930.0,0.00144873]
[1755472421268,0.83761411,117940.0,117930.0,0.00144873]
[1755472421485,0.37856881,117940.0,117930.0,0.00178873]
[1755472421687,0.48620922,117940.0,117930.0,0.00178873]
[1755472421900,0.81231637,117940.0,117930.0,0.00178873]
[1755472422045,0.47231637,117940.0,117930.0,0.00178873]
[1755472422248,0.32366735,117940.0,117930.0,0.21881138]
[1755472422452,0.45482735,117940.0,117930.0,0.21965138]
[1755472422649,0.45142935,117940.0,117930.0,0.00262873]
[1755472422896,0.46887837,117940.0,117930.0,0.22177128]
[1755472423093,0.46887837,117940.0,117930.0,0.21965138]
[1755472423549,0.46887837,117940.0,117930.0,0.21881138]
[1755472424047,0.46887837,117940.0,117930.0,0.21965138]
[1755472424456,0.46887837,117940.0,117930.0,0.29267859]
[1755472425391,0.46887837,117940.0,117930.0,0.00178873]
[1755472425606,0.46886585,117940.0,117930.0,0.00390863]
[1755472428730,0.15067908,117940.0,117930.0,0.46355062]
[1755472428910,0.4355118,117940.0,117930.0,0.46227072]
[1755472429138,0.45137683,117940.0,117930.0,0.46227072]
[1755472430442,0.4355118,117940.0,117930.0,0.46227072]
[1755472431537,0.4355118,117940.0,117930.0,0.46143072]
[1755472432162,0.45138096,117940.0,117930.0,0.46143072]
[1755472432415,0.45138096,117940.0,117930.0,0.17138086]
[1755472432645,0.45138096,117940.0,117930.0,0.46143072]
[1755472434580,0.32026096,117940.0,117930.0,0.46143072]
[1755472434764,0.45126228,117940.0,117930.0,0.46143072]
[1755472435311,0.32026228,117940.0,117930.0,0.46143072]
[1755472435519,0.45122228,117940.0,117930.0,0.46143072]
[1755472440155,0.32026228,117940.0,117930.0,0.46143072]
[1755472440351,0.45110228,117940.0,117930.0,0.46143072]
[1755472440766,0.28152622,117940.0,117930.0,0.46143072]
[1755472441594,0.45424397,117940.0,117930.0,0.46143072]
[1755472442279,0.45424397,117940.0,117930.0,0.17138086]
[1755472442495,0.45635397,117940.0,117930.0,0.46143072]
[1755472442726,0.45635397,117940.0,117930.0,0.29183859]
[1755472442968,0.45635397,117940.0,117930.0,0.00178873]
[1755472442969,0.45635346,117940.0,117930.0,0.00178873]
[1755472443246,0.45635346,117940.0,117930.0,0.00044873]
[1755472448048,0.45635346,117940.0,117930.0,0.17004086]
[1755472449228,0.45635631,117940.0,117930.0,0.00044873]
[1755472452140,0.45638078,117940.0,117930.0,0.00044873]
[1755472455898,0.45638078,117940.0,117930.0,0.46009072]
[1755472456541,0.45638078,117940.0,117930.0,0.29049859]
[1755472459421,0.45638078,117940.0,117930.0,0.00044873]
[1755472459625,0.45638078,117940.0,117930.0,0.29049859]
[1755472460509,0.45638078,117940.0,117930.0,0.21800192]
[1755472461498,0.45639036,117940.0,117930.0,0.21800192]
[1755472468399,0.45639036,117940.0,117930.0,0.38759405]
[1755472470706,0.4404818,117940.0,117930.0,0.38759405]
[1755472470926,0.45639082,117940.0,117930.0,0.38759405]
[1755472478527,0.15072307,117940.0,117930.0,0.38893405]
[1755472478742,0.26481405,117940.0,117930.0,0.38893405]
[1755472478948,0.28072307,117940.0,117930.0,0.38893405]
[1755472479151,0.28381307,117940.0,117930.0,0.38893405]
[1755472479375,0.28583307,117940.0,117930.0,0.38893405]
[1755472480051,0.2858319,117940.0,117930.0,0.38893405]
[1755472480506,0.45540965,117940.0,117930.0,0.17138086]
[1755472480723,0.45540917,117940.0,117930.0,0.38893405]
[1755472481077,0.45540917,117940.0,117930.0,0.38759405]
[1755472482365,0.32540917,117940.0,117930.0,0.17004086]
[1755472482562,0.45540917,117940.0,117930.0,0.38759405]
[1755472489047,0.4395018,117940.0,117930.0,0.38759405]
[1755472489278,0.45540768,117940.0,117930.0,0.38759405]
[1755472489765,0.45540764,117940.0,117930.0,0.38759405]
[1755472492195,0.45540764,117940.0,117930.0,0.17004086]
[1755472492410,0.45540764,117940.0,117930.0,0.38759405]
[1755472494052,0.4395018,117940.0,117930.0,0.38759405]
[1755472494351,0.45540752,117940.0,117930.0,0.38759405]
[1755472498436,0.4395018,117940.0,117930.0,0.38759405]
[1755472498565,0.45540768,117940.0,117930.0,0.38759405]
[1755472499645,0.45540768,117940.0,117930.0,0.17004086]
[1755472500242,0.45540768,117940.0,117930.0,0.38759405]
[1755472501641,0.45540768,117940.0,117930.0,0.21800192]
[1755472506440,0.4395018,117940.0,117930.0,0.21800192]
[1755472508515,0.4395018,117940.0,117930.0,0.00044873]
[1755472508726,0.65705499,117940.0,117930.0,0.00044873]
[1755472508946,0.4395018,117940.0,117930.0,0.00044873]
[1755472509354,0.65705499,117940.0,117930.0,0.00044873]
[1755472509561,0.4395018,117940.0,117930.0,0.00044873]
[1755472511544,0.45541091,117940.0,117930.0,0.00044873]
[1755472511753,0.45541026,117940.0,117930.0,0.00044873]
[1755472512220,0.45541026,117940.0,117930.0,0.21800192]
[1755472513991,0.45541026,117940.0,117930.0,0.00044873]
[1755472515428,0.45541026,117940.0,117930.0,0.21800192]
[1755472519058,0.45541026,117940.0,117930.0,0.38759405]
[1755472520111,0.4395018,117940.0,117930.0,0.38759405]
[1755472520396,0.45540889,117940.0,117930.0,0.38759405]
[1755472520803,0.32338889,117940.0,117930.0,0.38893405]
[1755472521008,0.28068114,117940.0,117930.0,0.38893405]
[1755472521475,0.45550889,117940.0,117930.0,0.17138086]
[1755472521687,0.45550889,117940.0,117930.0,0.17004086]
[1755472523508,0.45550844,117940.0,117930.0,0.38759405]
[1755472527636,0.45550844,117940.0,117930.0,0.17004086]
[1755472527854,0.45550844,117940.0,117930.0,0.38759405]
[1755472529553,0.45550851,117940.0,117930.0,0.38759405]
[1755472530773,0.45550851,117940.0,117930.0,0.17004086]
[1755472531002,0.45550851,117940.0,117930.0,0.38759405]
[1755472534424,0.45550851,117940.0,117930.0,0.17004086]
[1755472534964,0.45550851,117940.0,117930.0,0.38759405]
[1755472536906,0.45550851,117940.0,117930.0,0.17004086]
[1755472537109,0.45550851,117940.0,117930.0,0.38759405]
[1755472537342,0.45550851,117940.0,117930.0,0.17004086]
[1755472537551,0.45550851,117940.0,117930.0,0.38759405]
[1755472537752,0.45550851,117940.0,117930.0,0.00044873]
[1755472537923,0.45550851,117940.0,117930.0,0.21800192]
[1755472538717,0.45550854,117940.0,117930.0,0.21800192]
[1755472539089,0.45546854,117940.0,117930.0,0.21800192]
[1755472539292,0.45546858,117940.0,117930.0,0.21800192]
[1755472539522,0.45546858,117940.0,117930.0,0.00044873]
[1755472539779,0.67302177,117940.0,117930.0,0.00044873]
[1755472540268,0.45546858,117940.0,117930.0,0.00044873]
[1755472540483,0.67302177,117940.0,117930.0,0.00044873]
[1755472541789,0.67302192,117940.0,117930.0,0.00044873]
[1755472542218,0.45546873,117940.0,117930.0,0.00044873]
[1755472542417,0.67302192,117940.0,117930.0,0.00044873]
[1755472542676,0.45546873,117940.0,117930.0,0.00044873]
[1755472542900,0.67302192,117940.0,117930.0,0.00044873]
[1755472543803,0.45546873,117940.0,117930.0,0.00044873]
[1755472544002,0.67302192,117940.0,117930.0,0.00044873]
[1755472544498,0.45546873,117940.0,117930.0,0.00044873]
[1755472544941,0.67302192,117940.0,117930.0,0.00044873]
[1755472548024,0.6730202,117940.0,117930.0,0.00044873]
[1755472548468,0.67302014,117940.0,117930.0,0.00044873]
[1755472549814,0.45546695,117940.0,117930.0,0.00044873]
[1755472550034,0.67302014,117940.0,117930.0,0.00044873]
[1755472552495,0.90802235,117940.0,117930.0,0.00044873]
[1755472553314,0.49840097,117940.0,117930.0,0.00044873]
[1755472553519,0.93350735,117940.0,117930.0,0.00044873]
[1755472556961,0.49839201,117940.0,117930.0,0.00044873]
[1755472557187,0.7159452,117940.0,117930.0,0.00044873]
[1755472557458,0.71594508,117940.0,117930.0,0.00044873]
[1755472557677,0.71594401,117940.0,117930.0,0.00044873]
[1755472560911,0.49839082,117940.0,117930.0,0.00044873]
[1755472561133,0.9334972,117940.0,117930.0,0.00044873]
[1755472562004,0.49839082,117940.0,117930.0,0.00044873]
[1755472562265,0.9334972,117940.0,117930.0,0.00044873]
[1755472562536,0.8035772,117940.0,117930.0,0.00044873]
[1755472562739,0.69041901,117940.0,117930.0,0.00044873]
[1755472562950,0.3202868,117940.0,117930.0,0.38893405]
[1755472563159,0.4501668,117940.0,117930.0,0.38893405]
[1755472564253,0.28058905,117940.0,117930.0,0.38893405]
[1755472564658,0.28058905,117940.0,117930.0,0.17138086]
[1755472564832,0.28058905,117940.0,117930.0,0.38893405]
[1755472565031,0.26469405,117940.0,117930.0,0.38893405]
[1755472565271,0.28058716,117940.0,117930.0,0.38893405]
[1755472565639,0.15070757,117940.0,117930.0,0.38893405]
[1755472565825,0.27940286,117940.0,117930.0,0.38893405]
[1755472566026,0.29529638,117940.0,117930.0,0.38893405]
[1755472566696,0.46487413,117940.0,117930.0,0.17138086]
[1755472567139,0.46810413,117940.0,117930.0,0.17138086]
[1755472568216,0.46810459,117940.0,117930.0,0.17138086]
[1755472568731,0.29852684,117940.0,117930.0,0.38893405]
[1755472569948,0.46810459,117940.0,117930.0,0.38893405]
[1755472571565,0.45221061,117940.0,117930.0,0.17138086]
[1755472572174,0.46810553,117940.0,117930.0,0.17138086]
[1755472572579,0.46810569,117940.0,117930.0,0.17138086]
[1755472573696,0.29852794,117940.0,117930.0,0.17138086]
[1755472574666,0.30051794,117940.0,117930.0,0.17138086]
[1755472575272,0.30051756,117940.0,117930.0,0.17138086]
[1755472575629,0.14952286,117940.0,117930.0,0.60648724]
[1755472575850,0.22940286,117940.0,117930.0,0.63280624]
[1755472576217,0.22940286,117940.0,117930.0,0.41525305]
[1755472576847,0.22940286,117940.0,117930.0,0.41925305]
[1755472578494,0.22940286,117940.0,117930.0,0.49170876]
[1755472579354,0.22940286,117940.0,117930.0,0.49086876]
[1755472581747,0.22940286,117940.0,117930.0,0.62070876]
[1755472583778,0.09952286,117940.0,117930.0,0.62070876]
[1755472584221,0.09952286,117940.0,117930.0,0.65807619]
[1755472585244,0.09952286,117940.0,117930.0,0.65307619]
[1755472589907,0.09952286,117940.0,117930.0,0.64807619]
[1755472591152,0.09952286,117940.0,117930.0,0.98807619]
[1755472591396,0.00323,117960.0,117950.0,0.16956337]
[1755472591630,0.09003405,117960.0,117950.0,0.45957227]
[1755472591835,0.09003405,117960.0,117950.0,0.46091227]
[1755472591836,0.21987405,117960.0,117950.0,0.46091227]
[1755472592059,0.21987405,117960.0,117950.0,0.48638827]
[1755472592626,0.21465405,117960.0,117950.0,0.48638827]
[1755472593065,0.08481405,117960.0,117950.0,0.48638827]
[1755472593262,0.21465405,117960.0,117950.0,0.48638827]
[1755472593998,0.21784405,117960.0,117950.0,0.48638827]
[1755472594240,0.21984405,117960.0,117950.0,0.48638827]
[1755472595067,0.21984405,117960.0,117950.0,0.20508662]
[1755472595305,0.21984405,117960.0,117950.0,0.49509552]
[1755472598879,0.21984405,117960.0,117950.0,0.62489552]
[1755472600566,0.21984405,117960.0,117950.0,0.55233985]
[1755472601013,0.21984405,117960.0,117950.0,0.33488662]
[1755472601228,0.21984405,117960.0,117950.0,0.42253985]
[1755472601445,0.21984405,117960.0,117950.0,0.42119985]
[1755472602104,0.25156729,117990.0,117970.0,0.16953462]
[1755472602305,0.25156729,117990.0,117970.0,0.38698785]
[1755472602306,0.21661405,117980.0,117970.0,0.38698785]
[1755472602497,0.21980405,117980.0,117970.0,0.16953462]
[1755472602926,0.21980405,117980.0,117970.0,0.19500562]
[1755472603065,0.60677753,117980.0,117970.0,0.025471]
[1755472603321,0.82435444,117980.0,117970.0,0.025471]
[1755472603538,0.84021003,117980.0,117960.0,0.17399393]
[1755472603755,0.39017785,117970.0,117960.0,0.19946793]
[1755472603961,0.25953867,117970.0,117960.0,0.19946793]
[1755472605435,0.25953867,117970.0,117960.0,0.20146793]
[1755472605861,0.25953867,117970.0,117960.0,0.41892116]
[1755472606804,0.25953867,117970.0,117960.0,0.42092116]
[1755472608335,0.25953867,117970.0,117960.0,0.20346793]
[1755472608814,0.09000405,117970.0,117960.0,0.20346793]
[1755472609309,0.09000405,117970.0,117960.0,0.63837439]
[1755472609549,0.09000405,117970.0,117960.0,0.42092116]
[1755472612789,0.09000405,117970.0,117960.0,0.20346793]
[1755472613060,0.09000405,117970.0,117960.0,0.24196011]
[1755472613340,0.09000405,117970.0,117960.0,0.45941334]
[1755472613554,0.09000405,117970.0,117960.0,0.46075334]
[1755472613782,0.08800405,117970.0,117960.0,0.46075334]
[1755472614049,0.08481405,117970.0,117960.0,1.01820657]
[1755472614301,0.00012368,117980.0,117970.0,0.16953462]
[1755472614524,0.08493773,117980.0,117970.0,0.51674785]
[1755472614704,0.08493773,117980.0,117970.0,0.51808785]
[1755472615170,0.08493773,117980.0,117970.0,0.54355685]
[1755472615684,0.08493773,117980.0,117970.0,0.54455685]
[1755472616531,0.08493773,117980.0,117970.0,0.61692064]
[1755472617171,0.08493773,117980.0,117970.0,0.61792064]
[1755472618375,0.08812773,117980.0,117970.0,0.61792064]
[1755472619017,0.09012773,117980.0,117970.0,0.19700362]
[1755472619182,0.09012773,117980.0,117970.0,0.32672362]
[1755472619404,0.25964798,117980.0,117970.0,0.19700362]
[1755472619653,0.25964798,117980.0,117970.0,0.32672362]
[1755472619654,0.549465,117980.0,117970.0,0.32672362]
[1755472620208,0.549465,117980.0,117970.0,0.19700362]
[1755472620407,0.27551722,117980.0,117970.0,0.002]
[1755472620827,0.25964798,117980.0,117970.0,0.002]
[1755472621030,0.27551792,117980.0,117970.0,0.002]
[1755472621724,0.56533494,117980.0,117970.0,0.002]
[1755472625317,0.27551792,117980.0,117970.0,0.002]
[1755472625534,0.56533494,117980.0,117970.0,0.002]
[1755472626228,0.56534234,117980.0,117970.0,0.002]
[1755472627337,0.27552532,117980.0,117970.0,0.002]
[1755472627553,0.56534234,117980.0,117970.0,0.002]
[1755472627771,0.58279136,117980.0,117970.0,0.002]
[1755472629234,0.58279358,117980.0,117970.0,0.002]
[1755472631170,0.59073394,117980.0,117970.0,0.002]
[1755472631628,0.93073394,117980.0,117970.0,0.002]
[1755472631839,0.94902749,117980.0,117970.0,0.002]
[1755472632263,0.94902749,117980.0,117970.0,0.001]
[1755472632474,0.16957775,117940.0,117930.0,0.62655293]
[1755472632647,0.16957775,117940.0,117930.0,0.62789293]
[1755472632866,0.16957775,117940.0,117930.0,0.20835591]
[1755472633065,0.2543918,117940.0,117930.0,0.03983545]
[1755472633327,0.2543918,117940.0,117930.0,0.20942758]
[1755472633757,0.25451541,117940.0,117930.0,0.20942758]
[1755472634977,0.25451541,117940.0,117930.0,0.21242758]
[1755472635198,0.25451541,117940.0,117930.0,0.21542758]
[1755472636678,0.25953541,117940.0,117930.0,0.34514758]
[1755472637349,0.25751541,117940.0,117930.0,0.34514758]
[1755472640364,0.25751541,117940.0,117930.0,0.6349646]
[1755472640575,0.25953541,117940.0,117930.0,0.13706]
[1755472640792,0.25953541,117940.0,117930.0,0.13572]
[1755472641271,0.54935243,117940.0,117930.0,0.006]
[1755472641494,0.25953541,117940.0,117930.0,0.17905203]
[1755472641714,0.08793766,117940.0,117930.0,0.46674915]
[1755472642150,0.08493766,117940.0,117930.0,0.46674915]
[1755472642374,0.08493766,117940.0,117930.0,0.46758915]
[1755472645572,0.08493766,117940.0,117930.0,0.46674915]
[1755472650527,0.08493766,117940.0,117930.0,0.17693213]
[1755472650739,0.08493766,117940.0,117930.0,0.46674915]
[1755472650952,0.08995766,117940.0,117930.0,0.30587213]
[1755472653578,0.08995766,117940.0,117930.0,0.59568915]
[1755472654633,0.08995766,117940.0,117930.0,0.30587213]
[1755472657064,0.25953541,117940.0,117930.0,0.30587213]
[1755472657889,0.25953541,117940.0,117930.0,0.13636]
[1755472658091,0.25953541,117940.0,117930.0,0.006]
[1755472659265,0.38997541,117940.0,117930.0,0.006]
[1755472662072,0.67979243,117940.0,117930.0,0.006]
[1755472662278,0.6956849,117940.0,117930.0,0.006]
[1755472663032,0.69568216,117940.0,117930.0,0.006]
[1755472663239,0.69568216,117940.0,117930.0,0.003]
[1755472663395,0.16959213,117930.0,117920.0,0.0004]
[1755472663596,0.25656618,117930.0,117920.0,0.0004]
[1755472663818,0.27546591,117930.0,117920.0,0.0004]
[1755472665513,0.27546591,117930.0,117920.0,0.0014]
[1755472666170,0.27545295,117930.0,117920.0,0.0034]
[1755472666584,0.27545295,117930.0,117920.0,0.0014]
[1755472666790,0.27545295,117930.0,117920.0,0.0024]
[1755472673251,0.27545295,117930.0,117920.0,0.17200651]
[1755472675477,0.25957618,117930.0,117920.0,0.17200651]
[1755472676779,0.08998405,117930.0,117920.0,0.17200651]
[1755472676939,0.09185583,117930.0,117920.0,0.17200651]
[1755472679368,0.08998405,117930.0,117920.0,0.17200651]
[1755472680431,0.09185583,117930.0,117920.0,0.17200651]
[1755472680627,0.08998405,117930.0,117920.0,0.17200651]
[1755472684011,0.26144796,117930.0,117920.0,0.17200651]
[1755472684158,0.25957618,117930.0,117920.0,0.17200651]
[1755472688479,0.47717,117930.0,117920.0,0.17200651]
[1755472689910,0.47717,117930.0,117920.0,0.0024]
[1755472692227,0.25957618,117930.0,117920.0,0.0024]
[1755472692503,0.47717,117930.0,117920.0,0.0024]
[1755472696534,0.49305072,117930.0,117920.0,0.0024]
[1755472702092,0.2754569,117930.0,117920.0,0.0024]
[1755472702329,0.49305072,117930.0,117920.0,0.0024]
[1755472704139,0.2754569,117930.0,117920.0,0.0024]
[1755472704340,0.49305072,117930.0,117920.0,0.0024]
[1755472704565,0.49305034,117930.0,117920.0,0.0024]
[1755472705023,0.49305029,117930.0,117920.0,0.0024]
[1755472707523,0.49305017,117930.0,117920.0,0.0024]
[1755472709804,0.79575487,117930.0,117920.0,0.0024]
[1755472710723,0.79574471,117930.0,117920.0,0.0024]
[1755472713821,0.79573454,117930.0,117920.0,0.0024]
[1755472714229,0.72807268,117930.0,117920.0,0.0024]
[1755472714419,0.85791268,117930.0,117920.0,0.0024]
[1755472714647,0.85791067,117930.0,117920.0,0.0024]
[1755472715614,0.42272303,117930.0,117920.0,0.0024]
[1755472715990,0.85791067,117930.0,117920.0,0.0014]
[1755472716163,0.86639267,117930.0,117920.0,0.0014]
[1755472718630,0.86639267,117930.0,117920.0,0.0024]
[1755472722303,0.43120503,117930.0,117920.0,0.0024]
[1755472722542,0.86639267,117930.0,117920.0,0.0024]
[1755472722879,0.86638415,117930.0,117920.0,0.0024]
[1755472723390,0.8663836,117930.0,117920.0,0.0024]
[1755472732096,0.86638396,117930.0,117920.0,0.0024]
[1755472734227,0.64879014,117930.0,117920.0,0.0024]
[1755472736392,0.86638396,117930.0,117920.0,0.0024]
[1755472736597,0.87232967,117930.0,117920.0,0.0024]
[1755472737054,0.87232967,117930.0,117920.0,0.0014]
[1755472737507,1.23852521,117930.0,117920.0,0.0014]
[1755472737954,1.23852521,117930.0,117920.0,0.0004]
[1755472739075,1.02093139,117930.0,117920.0,0.0004]
[1755472739320,1.23852521,117930.0,117920.0,0.0004]
[1755472740035,1.02093139,117930.0,117920.0,0.0004]
[1755472740500,0.80333757,117930.0,117920.0,0.0004]
[1755472740962,1.00508227,117930.0,117920.0,0.0004]
[1755472741177,1.02094316,117930.0,117920.0,0.0004]
[1755472741602,1.02094349,117930.0,117920.0,0.0004]
[1755472743363,0.80334967,117930.0,117920.0,0.0004]
[1755472743536,1.02094349,117930.0,117920.0,0.0004]
[1755472744716,0.80334967,117930.0,117920.0,0.0004]
[1755472744935,1.02094349,117930.0,117920.0,0.0004]
[1755472748170,0.80334967,117930.0,117920.0,0.0004]
[1755472748378,1.02158349,117930.0,117920.0,0.0004]
[1755472748604,0.80394967,117930.0,117920.0,0.0004]
[1755472748810,1.02154349,117930.0,117920.0,0.0004]
[1755472749439,0.99973742,117930.0,117920.0,0.0004]
[1755472749678,1.02153686,117930.0,117920.0,0.0004]
[1755472750108,1.0155911,117930.0,117920.0,0.0004]
[1755472750322,1.02153682,117930.0,117920.0,0.0004]
[1755472750533,1.02153683,117930.0,117920.0,0.0004]
[1755472750718,1.02153488,117930.0,117920.0,0.0004]
[1755472752688,0.80394106,117930.0,117920.0,0.0004]
[1755472752935,1.02153488,117930.0,117920.0,0.0004]
[1755472756188,1.02153602,117930.0,117920.0,0.0004]
[1755472758608,0.99775183,117930.0,117920.0,0.0004]
[1755472758815,1.02153772,117930.0,117920.0,0.0004]
[1755472759301,1.0155914,117930.0,117920.0,0.0004]
[1755472759513,1.02153759,117930.0,117920.0,0.0004]
[1755472759696,1.02153775,117930.0,117920.0,0.0004]
[1755472762965,0.80394393,117930.0,117920.0,0.0004]
[1755472763176,1.02153775,117930.0,117920.0,0.0004]
[1755472765669,1.02154921,117930.0,117920.0,0.0004]
[1755472768093,1.01363904,117930.0,117920.0,0.0004]
[1755472768296,1.02157412,117930.0,117920.0,0.0004]
[1755472771153,1.02157383,117930.0,117920.0,0.0004]
[1755472772340,1.33182951,117930.0,117920.0,1e-08]
[1755472772546,1.57993638,117930.0,117920.0,1e-08]
[1755472772979,1.36234256,117930.0,117920.0,1e-08]